Cogmind - Beta 15 @@@ ROGUE MODE // 2025.08.30 @ 08:02:58 Player: shapeshifter Result: Destroyed by S-10 Pest with Light Assault Rifle Performance ------------- Evolutions (0) 0 Regions Visited (2) 400 Robots Destroyed (14) 70 Value Destroyed (419) 419 Prototype IDs (11) 220 Alien Tech Used (0) 0 Bonus (0) 0 TOTAL SCORE: 1109 Bonus ------- None Cogmind --------- Core Integrity 0/250 Matter 233/300 Energy 100/100 System Corruption 0% Temperature Cool (0) Movement Treading (160) Location -10/Subcaves Parts ------- > --- POWER (1) -------- Subdweller Power Source > --- PROPULSION (2) --- Spiked Treads Spiked Treads > --- UTILITY (2) ------ Small Storage Unit Makeshift Light Armor Plating > --- WEAPON (2) ------- Makeshift Shrapnel Gun Subdweller Shrapnel Launcher > --- INVENTORY (8) ---- Subdweller Monowheel Scrap Shield Tower Shield Subdweller Machine Gun Multitool Makeshift Axe Peak State ------------ > --- POWER ------------ Subdweller Power Source > --- PROPULSION ------- Spiked Treads Spiked Treads > --- UTILITY ---------- Small Storage Unit Makeshift Light Armor Plating > --- WEAPON ----------- Subdweller Machine Gun Makeshift Shrapnel Gun > --- INVENTORY -------- Subdweller Monowheel Scrap Shield Tower Shield Subdweller Shrapnel Launcher Multitool Makeshift Axe [Rating: 20] Favorites ----------- Power Light Ion Engine Engine Light Ion Engine Propulsion Light Treads Treads Light Treads Wheel Subdweller Monowheel Utility Small Storage Unit Device Seismic Detector Storage Small Storage Unit Protection Makeshift Light Armor Plating Weapon Subdweller Machine Gun Energy Gun Medium Laser Ballistic Gun Subdweller Machine Gun Ballistic Cannon Battle Cannon Launcher Subdweller Shrapnel Launcher Impact Weapon Hammer Build | -11 -10 -10 ------- Run | Yrd Mat Sub Slots Evolved . | . . . Power . | . . . Propulsion . | . . . Utility . | . . . Weapon . | . . . Parts Attached 24 | 7 . 17 Power 6 | 1 . 5 Engine 6 | 1 . 5 Core . | . . . Reactor . | . . . Propulsion 6 | 2 . 4 Treads 4 | 2 . 2 Leg . | . . . Wheel 2 | . . 2 Hover . | . . . Flight . | . . . Utility 3 | 2 . 1 Device 1 | 1 . . Storage 1 | 1 . . Processor . | . . . Hackware . | . . . Protection 1 | . . 1 Artifact . | . . . Weapon 9 | 2 . 7 Energy Gun 1 | 1 . . Energy Cannon . | . . . Ballistic Gun 5 | 1 . 4 Ballistic Cannon 1 | . . 1 Launcher 1 | . . 1 Special Weapon . | . . . Impact Weapon 1 | . . 1 Slashing Weapon . | . . . Piercing Weapon . | . . . Special Melee Weapon . | . . . Unidentified Prototypes . | . . . Parts Lost 2 | . . 2 Power 1 | . . 1 Propulsion . | . . . Utility . | . . . Weapon 1 | . . 1 Highest Loss Streak 1 | . . 1 To Critical Strikes . | . . . Average Backups 6 | 3 5 6 Power . | . 1 . Propulsion 2 | 1 2 2 Utility . | . . . Weapon 2 | . 1 2 Tool/Special . | . . . Unused Backups 11 | . . 11 Power . | . . . Propulsion 5 | . . 5 Utility 3 | . . 3 Weapon 2 | . . 2 Tool/Special 1 | . . 1 Average Slot Usage (%) 98 | . 100 97 Engine 12 | . 14 12 Treads 26 | . 28 26 Wheel 1 | . . 1 Device 5 | . 14 4 Storage 14 | . 14 14 Protection 8 | . . 9 Energy Gun 3 | . 14 1 Ballistic Gun 22 | . 14 23 Ballistic Cannon 1 | . . 1 Peak Build Rating 20 | 7 7 20 Average Rating 12 | 4 7 13 On Entrance 4 | . 7 7 Naked Turns . | . . . Heaviest Build 24 | 13 13 24 Greatest Support 40 | 40 40 40 Greatest Overweight (x) 1 | . . 1 Average Overweight (x) . | . . . Largest Inventory Capacity 8 | 8 8 8 Average Capacity 7 | 7 8 8 Most Carried 8 | 6 6 8 Average Carried 7 | 3 5 7 Final Capacity 8 | 8 8 8 Final Carried 8 | 4 6 8 Class Distribution -------------------- 77% | Mutant 18% | Derelict-Mutant 3% | Scavenger-Mutant Dominant Class ---------------- Mutant | -10/Materials Mutant | -10/Subcaves Resources | -11 -10 -10 ----------- Run | Yrd Mat Sub Matter Collected 758 | 284 65 409 Remotely . | . . . Salvage Created 592 | 81 65 446 Parts 33 | 6 4 23 Haulers Intercepted . | . . . Recyclers Shooed . | . . . Parts Field Recycled . | . . . Retrieved Matter . | . . . Parts Self-Destructed 1 | . . 1 Prevented . | . . . Kills | -11 -10 -10 ------- Run | Yrd Mat Sub Combat Hostiles Destroyed 11 | . 2 9 Guns 8 | . 2 6 Cannons 2 | . . 2 AOE 1 | . . 1 Classes Destroyed 4 | 1 1 2 Tunneler 3 | 3 . . Swarmer 1 | . . 1 Grunt 2 | . 2 . Subdweller 8 | . . 8 Best Kill Streak 3 | 3 2 2 Combat Bots Only 2 | . 2 2 Max Kills in Single Turn 1 | 1 1 1 Gunslinging . | . . . Exploded 1 | . . 1 Melee . | . . . Uniques/NPCs Destroyed . | . . . Combat | -11 -10 -10 -------- Run | Yrd Mat Sub Hostile Shots Fired 62 | . 5 57 Missed 17 | . 1 16 Hits 45 | . 4 41 Projectile 45 | . 4 41 Critical Strikes 1 | . . 1 Damage Taken 1018 | . 43 975 Core 258 | . . 258 Absorbed by Shields . | . . . Core Remaining (%) 100 | 100 . . Volleys Fired 60 | 8 5 47 Largest 2 | 2 2 2 Hottest 70 | 70 70 70 Shots Fired 112 | 16 10 86 Gun 100 | 16 10 74 Cannon 10 | . . 10 Launcher 2 | . . 2 Special . | . . . Kinetic 87 | 8 5 74 Thermal 25 | 8 5 12 Explosive . | . . . Electromagnetic . | . . . Robot Hit Streak 16 | 3 3 16 Robot Miss Streak 3 | 2 1 3 Penetration Max . | . . . Secondary Targets . | . . . Shots Hit Robots 76 | 9 6 61 Core Hits 35 | 4 4 27 Critical Kills 1 | . . 1 Critical Parts Destroyed 1 | . . 1 Critical Strikes 5 | . 1 4 Burn 2 | . 1 1 Destroy 3 | . . 3 Melee Attacks 9 | . . 9 Impact 9 | . . 9 Slashing . | . . . Piercing . | . . . Sneak Attacks . | . . . Combat Hostiles . | . . . Follow-up Attacks . | . . . Damage Inflicted 1296 | 120 75 1101 Guns 1051 | 120 75 856 Cannons 157 | . . 157 Explosions 88 | . . 88 Melee . | . . . Ramming . | . . . Kinetic 1035 | 58 25 952 Thermal 261 | 62 50 149 Explosive . | . . . Electromagnetic . | . . . Impact . | . . . Slashing . | . . . Piercing . | . . . Highest Corruption . | . . . Average Corruption . | . . . Corruption Purged . | . . . Corruption Blocked . | . . . Overload Shots . | . . . Overflow Damage . | . . . Projectiles . | . . . Explosions . | . . . Melee . | . . . Knockbacks 2 | . . 2 Impact . | . . . Kinetic 2 | . . 2 Secondary . | . . . Self-Inflicted Damage 32 | . . 32 Shots 1 | . . 1 Rammed . | . . . Targets Rammed . | . . . Kicked . | . . . Crushed . | . . . Highest Temperature 287 | 36 45 287 Average Temperature 45 | 14 19 171 Received Heat Transfer 504 | . 24 480 Siege Activations . | . . . Martial Activations . | . . . Shielding Activations . | . . . Robots Disrupted . | . . . Combat Hostiles . | . . . Robots Corrupted . | . . . Combat Hostiles . | . . . Parts Fried . | . . . Impact Corruptions . | . . . Robots Melted . | . . . Combat Hostiles . | . . . Parts Melted . | . . . Heat Transferred 925 | 185 222 518 Parts Sabotaged . | . . . Parts Stolen . | . . . Parts Stripped . | . . . Power Chain Reactions . | . . . Alert | -11 -10 -10 ------- Run | Yrd Mat Sub Maximum Alert Level . | . . . Low Security (%) 100 | 100 100 . Level 1 . | . . . Level 2 . | . . . Level 3 . | . . . Level 4 . | . . . Level 5 . | . . . High Security . | . . . Max Security . | . . . Peak Influence 50 | 10 50 . Initial . | . . . Average 5 | 1 6 . Influence Increases 100 | 15 50 35 Destroy 0b10 Robot/C 60 | . 40 20 Destroy 0b10 Robot/NC 15 | 15 . . Destroy Leader 10 | . 10 . Lose Combat Pursuer 15 | . . 15 Influence Decreases 65 | 15 20 30 Entered New Map 15 | . . 15 Time Decay 50 | 15 20 15 Squads Dispatched 1 | . 1 . Investigation . | . . . Extermination . | . . . Reinforcement 1 | . 1 . Assault . | . . . Garrison . | . . . Intercept . | . . . Searches Triggered . | . . . Construction Impeded . | . . . Haulers Reinforced . | . . . Active Scanning Responses . | . . . Cargo Convoy Interrupts . | . . . Stealth | -11 -10 -10 --------- Run | Yrd Mat Sub Distress Signals . | . . . Communications Jammed . | . . . Distress Signals . | . . . Times Spotted 22 | . 3 19 Peak Tracking Total 6 | . 1 6 Tactical Retreats 5 | . . 5 Traps | -11 -10 -10 ------- Run | Yrd Mat Sub Traps Triggered 2 | . . 2 Indirectly . | . . . Trap Hack Attempts . | . . . Triggered . | . . . Disarmed . | . . . Reprogrammed . | . . . Reused . | . . . Traps Extracted . | . . . Installed . | . . . Triggered . | . . . Machines | -11 -10 -10 ---------- Run | Yrd Mat Sub Machines Disabled 4 | . . 4 Max in Single Turn 3 | . . 3 Machines Repaired . | . . . Machines Dismantled . | . . . Machines Sabotaged . | . . . Overloaded Fab Kills . | . . . Hacking | -11 -10 -10 --------- Run | Yrd Mat Sub Machines Accessed 3 | . 1 2 Terminals 1 | . 1 . Fabricators . | . . . Repair Stations . | . . . Recycling Units . | . . . Scanalyzers . | . . . Garrison Access . | . . . Total Hacks 7 | . 2 5 Successful 5 | . . 5 Failed 2 | . 2 . Catastrophic . | . . . Database Lockouts . | . . . Manual 2 | . 2 . Terminals 2 | . 2 . Fabricators . | . . . Repair Stations . | . . . Recycling Units . | . . . Scanalyzers . | . . . Garrison Access . | . . . Terminal Hacks 5 | . . 5 Record 4 | . . 4 Proto ID Catalog 1 | . . 1 Fabricator Hacks . | . . . Repair Station Hacks . | . . . Recycling Unit Hacks . | . . . Scanalyzer . | . . . Garrison Access Hacks . | . . . Unauthorized Hacks . | . . . Terminals . | . . . Fabricators . | . . . Repair Stations . | . . . Recycling Units . | . . . Scanalyzers . | . . . Garrison Access . | . . . Data Cores Recovered . | . . . Used . | . . . Hacking Detections 1 | . 1 . Full Trace Events . | . . . Feedback Events . | . . . Feedback Blocked . | . . . Robot Schematics Acquired . | . . . Robots Built . | . . . Authchips . | . . . Time . | . . . Total Robot Build Rating . | . . . Part Schematics Acquired . | . . . Parts Built . | . . . Authchips . | . . . Time . | . . . Total Part Build Rating . | . . . Parts Repaired . | . . . Time . | . . . Parts Recycled . | . . . Recycled Matter . | . . . Retrieved Matter . | . . . Retrieved Components . | . . . Parts Scanalyzed . | . . . Part Schematics Acquired . | . . . Parts Damaged . | . . . Bothacking | -11 -10 -10 ------------ Run | Yrd Mat Sub Used RIF Installer . | . . . Robots Hacked . | . . . Non-combat . | . . . Combat . | . . . Robot Hacks Applied . | . . . Relay Couplers Released . | . . . Fabnet Peak Effective % . | . . . Robots Rewired . | . . . Allies Hacked . | . . . Hacks Repelled . | . . . Allies | -11 -10 -10 -------- Run | Yrd Mat Sub Total Allies . | . . . Largest Group . | . . . Highest-Rated Group . | . . . Highest-Rated Ally . | . . . Total Orders . | . . . Ally Attacks . | . . . Total Damage . | . . . Kills . | . . . Allies Corrupted . | . . . Allies Melted . | . . . Intel | -11 -10 -10 ------- Run | Yrd Mat Sub Active Infowar (turns) 1311 | 1 316 994 Seismic 1311 | 1 316 994 Robot Analysis Total . | . . . Derelict Logs Recovered 2 | . . 2 Drone Launches . | . . . Drone Recoveries . | . . . Exploration | -11 -10 -10 ------------- Run | Yrd Mat Sub Turns Passed 3442 | 115 316 3011 Spaces Moved 2018 | 55 175 1788 Core 13 | 13 . . Treads 1851 | 42 175 1634 Legs . | . . . Wheels 154 | . . 154 Hover . | . . . Flight . | . . . Fastest Speed 50 | 50 160 110 Average Speed 155 | 134 160 155 Slowest Speed 160 | 160 160 160 Overloaded Moves . | . . . Propulsion Burnouts . | . . . Robots Hopped . | . . . Potential Cave-ins . | . . . Cave-ins Triggered . | . . . Exploration Rate (%) 41 | 4 28 92 Regions Visited 2 Branch Regions 1 Pre-discovered Areas 2 | . . 2 Known Exits Taken . | . . . Unknown Exits Taken 2 | 1 1 . Scrap Searched 3 | . . 3 Spaces Dug . | . . . Terrain Destroyed 34 | . . 34 Melee . | . . . Projectile . | . . . AOE 34 | . . 34 Terrain Rammed . | . . . Walls Destroyed . | . . . Machines Disabled . | . . . Actions | -11 -10 -10 --------- Run | Yrd Mat Sub Total 2199 | 80 201 1918 Wait 27 | . 20 7 Move 2016 | 54 174 1788 Hop . | . . . Pick Up 31 | 11 2 18 Fast Attach 5 | . . 5 Attach 12 | 7 . 5 Detach . | . . . Swap 12 | . . 12 Drop 27 | . . 27 Fire 60 | 8 5 47 Melee 9 | . . 9 Ram . | . . . Kick . | . . . Crush . | . . . Escape Stasis . | . . . Rewire . | . . . Trap . | . . . Miscellaneous . | . . . Route ------- -11/Scrapyard -10/Materials (discovered 3 exits: [*Mat] / [*Min] / *Sub) -10/Subcaves (discovered 2 exits: [*Mat] / [*Rec]) History --------- Turn | Location | Event 5 | -11/Scrapyard | Discovered new exit (range 15) 116 | -11/Scrapyard | Entered Materials 232 | -10/Materials | Discovered new exit (range 6) 258 | -10/Materials | Discovered new exit (range 8) 307 | -10/Materials | Build established: Mutant 348 | -10/Materials | Discovered new exit (range 16) 432 | -10/Materials | Entered Subcaves 446 | -10/Subcaves | Learned location of Zion (-6) 446 | -10/Subcaves | Met a Zionite searching for "candidates" 452 | -10/Subcaves | Shifting Twisted Machinery released Spk. Treads 508 | -10/Subcaves | Shifting Twisted Machinery released Battle Cannon 911 | -10/Subcaves | Discovered new exit (range 8) 1171 | -10/Subcaves | Visited Clippyterm 1176 | -10/Subcaves | Learned location of Section 7 (-2) 1176 | -10/Subcaves | Learned Factory fabricator intel 1410 | -10/Subcaves | Disturbed a concealed Subdweller 1411 | -10/Subcaves | Core integrity fell below 50% 1844 | -10/Subcaves | Visited 4L-MR0's lab 1859 | -10/Subcaves | Found Tower Shield 1907 | -10/Subcaves | Learned Materials interactive machine intel 2725 | -10/Subcaves | Shifting Twisted Machinery released Spk. Treads 2760 | -10/Subcaves | Shifting Twisted Machinery released Mak. Shrapnel Gun 2995 | -10/Subcaves | Core integrity fell below 20% 3088 | -10/Subcaves | Build established: Derelict-Mutant 3439 | -10/Subcaves | Discovered new exit (range 15) 3443 | -10/Subcaves | Destroyed by S-10 Pest with Light Assault Rifle Last Messages --------------- 03007_ Acquired 47 matter. 03010_ Acquired Sub. Power Source. 03012_ Acquired 15 matter. 03031_ Sub. Machine Gun shoots sparks and powers down. 03031_ 9U-L2I(R) destroyed. 03046_ Acquired 42 matter. 03048_ Dropped Broken Sub. Machine Gun. 03071_ XR-ASV(u) tweaks Twisted Machinery. 03134_ Subatomizers dissect the Sub. Machine Gun. 03145_ Acquired Sub. Machine Gun. 03283_ Acquired 45 matter. 03352_ Sub. Power Source shoots sparks and powers down. 03439_ S-10 Pest destroyed. 03439_ EXIT=FOUND 03441_ Machine disabled. 03443_ Lgt. Ion Engine fries itself beyond repair. Map ----- +----------------------------------------------------+ | ?????????????????????# " &"!#"#??????????????????? | | ?????????????????????##"#& ####?####?????????????? | | ??????????????????????### ## #### #?????????????? | | ?????????????????????###" " #?????????????? | | ???????????????????### #?????????????? | | ???????????????????# ### #?????????????? | | ???????????????????# #?????????????? | | ??????????????????## #?????????????? | | ??????????????????# ##????????????? | | ??????????????????## ## #????????????? | | ???????????????????#### ### ##????????#### | | ??????????????????????## #### ##??###### ## | | ??????????????????????## ### #### | | ???????????????????#### ## | | ???????????????????# ## | | ??????????????????## ### ### | | ???????????????#### ### #?### # | | ????????????#### ## ## ##??## ## | | ??###??????## ## ### ## ###?## ##? | | ?## ######## #### ### ##?# #?# | | ## ## #### #?## ### ### | | # #### ##??## ### ## | | ### ## ###????## ##?## | | ??# #### ### ## ## ###????# ##?## | | ??# #??# #?##### #### ;;#????## ### | | ?## #??# ##???# ##;;@ ;#?????## | | ?# #??# ##??# ;; ;#??????## | | ?# ##?# ##?# ;##????##### ## | | ## ## #?# ;#????## ### ###### | | # #### #### ;;;; ;????# ## ###?## | | ##?# ###### ; s#?????# #?# | | ### #???##### s ????# ##?? | | ## #????????;s= #???# #???? | | #???????? ??## ##???? | | ##???????? ??## #####????? | | ## ###???????? ?#??# #????????? | | #### ##???????t t ??## ####?????? | | #??# ####### ##?????? ??# #####?? | | ######?????## ##????? ???# #?? | | ##????????# #??????